Cogmind - Beta 13 @@@ ROGUE MODE // 2024.07.04 @ 10:17:48 Player: maykstuff Result: Destroyed by S-10 Pest with Light Assault Rifle Performance ------------- Evolutions (0) 0 Regions Visited (1) 200 Robots Destroyed (11) 55 Value Destroyed (315) 315 Prototype IDs (0) 0 Alien Tech Used (0) 0 Bonus (0) 0 TOTAL SCORE: 570 Bonus ------- None Cogmind --------- Core Integrity 0/250 Matter 273/300 Energy 112/125 System Corruption 0% Temperature Cool (0) Movement Core (200) Ox3 Location -10/Materials Parts ------- > --- POWER (1) -------- Light Ion Engine > --- PROPULSION (2) --- (None) > --- UTILITY (2) ------ Small Storage Unit > --- WEAPON (2) ------- Light Assault Rifle Hammer > --- INVENTORY (8) ---- Light Treads Light Treads Flight Unit Heat Sink Large Storage Unit Light Assault Rifle Peak State ------------ > --- POWER ------------ Ion Engine > --- PROPULSION ------- Compact Wheel Compact Wheel > --- UTILITY ---------- Small Storage Unit Improved Targeting Computer > --- WEAPON ----------- Welding Torch Flail > --- INVENTORY -------- Light Ion Engine Light Treads Light Treads Large Storage Unit Assault Rifle Light Assault Rifle Light Assault Rifle [Rating: 9] Favorites ----------- Power Ion Engine Engine Ion Engine Propulsion Compact Wheel Wheel Compact Wheel Utility Small Storage Unit Storage Small Storage Unit Processor Improved Targeting Computer Weapon Assault Rifle Ballistic Gun Assault Rifle Special Weapon Welding Torch Impact Weapon Flail Build | -11 -10 ------- Run | Yrd Mat Slots Evolved . | . . Power . | . . Propulsion . | . . Utility . | . . Weapon . | . . Parts Attached 15 | 6 9 Power 3 | 1 2 Engine 3 | 1 2 Core . | . . Reactor . | . . Propulsion 2 | 2 . Treads . | . . Leg . | . . Wheel 2 | 2 . Hover . | . . Flight . | . . Utility 2 | 1 1 Device . | . . Storage 1 | 1 . Processor 1 | . 1 Hackware . | . . Protection . | . . Artifact . | . . Weapon 8 | 2 6 Energy Gun . | . . Energy Cannon . | . . Ballistic Gun 5 | 2 3 Ballistic Cannon . | . . Launcher . | . . Special Weapon 1 | . 1 Impact Weapon 2 | . 2 Slashing Weapon . | . . Piercing Weapon . | . . Special Melee Weapon . | . . Unidentified Prototypes . | . . Parts Lost 8 | . 8 Power 2 | . 2 Propulsion 2 | . 2 Utility 1 | . 1 Weapon 3 | . 3 Highest Loss Streak 4 | . 4 To Critical Strikes . | . . Average Slot Usage (%) 85 | . 85 Engine 12 | . 12 Wheel 17 | . 17 Storage 14 | . 14 Processor 11 | . 11 Ballistic Gun 14 | . 14 Special Weapon 3 | . 3 Impact Weapon 10 | . 10 Naked Turns . | . . Heaviest Build 14 | 13 14 Greatest Support 32 | 32 32 Greatest Overweight (x) 3 | . 3 Average Overweight (x) . | . . Largest Inventory Capacity 8 | 8 8 Average Capacity 7 | 6 8 Most Carried 8 | 5 8 Average Carried 6 | 2 7 Final Capacity 8 | 8 8 Final Carried 6 | 4 6 Class Distribution -------------------- 100% | Mutant Dominant Class ---------------- Mutant | -10/Materials Resources | -11 -10 ----------- Run | Yrd Mat Matter Collected 395 | 189 206 Remotely . | . . Salvage Created 337 | . 337 Parts 15 | . 15 Haulers Intercepted . | . . Recyclers Shooed . | . . Parts Field Recycled . | . . Retrieved Matter . | . . Parts Self-Destructed . | . . Prevented . | . . Kills | -11 -10 ------- Run | Yrd Mat Combat Hostiles Destroyed 11 | . 11 Melee 2 | . 2 Guns 6 | . 6 Classes Destroyed 2 | . 2 Swarmer 3 | . 3 Grunt 8 | . 8 Best Kill Streak 7 | . 7 Combat Bots Only 7 | . 7 Max Kills in Single Turn 1 | . 1 Gunslinging . | . . Exploded . | . . Melee 1 | . 1 Uniques/NPCs Destroyed . | . . Combat | -11 -10 -------- Run | Yrd Mat Hostile Shots Fired 118 | . 118 Missed 28 | . 28 Damage Taken 824 | . 824 Core 255 | . 255 Absorbed by Shields . | . . Core Remaining (%) 100 | 100 . Volleys Fired 42 | . 42 Largest 2 | . 2 Hottest 40 | . 40 Shots Fired 47 | . 47 Gun 42 | . 42 Cannon . | . . Launcher . | . . Special 5 | . 5 Kinetic 42 | . 42 Thermal 5 | . 5 Explosive . | . . Electromagnetic . | . . Robot Hit Streak 12 | . 12 Robot Miss Streak 2 | . 2 Penetration Max . | . . Secondary Targets 1 | . 1 Max Gunslinging Chain 1 | . 1 Shots Hit Robots 42 | . 42 Core Hits 10 | . 10 Critical Kills 1 | . 1 Critical Parts Destroyed . | . . Critical Strikes 1 | . 1 Smash 1 | . 1 Melee Attacks 22 | . 22 Impact 22 | . 22 Slashing . | . . Piercing . | . . Sneak Attacks . | . . Combat Hostiles . | . . Follow-up Attacks . | . . Damage Inflicted 766 | . 766 Guns 311 | . 311 Cannons . | . . Explosions . | . . Melee 440 | . 440 Ramming . | . . Kinetic 311 | . 311 Thermal 15 | . 15 Explosive . | . . Electromagnetic . | . . Impact 440 | . 440 Slashing . | . . Piercing . | . . Highest Corruption . | . . Average Corruption . | . . Corruption Purged . | . . Corruption Blocked . | . . Overload Shots . | . . Overflow Damage 62 | . 62 Projectiles . | . . Explosions . | . . Melee 62 | . 62 Knockbacks 1 | . 1 Impact 1 | . 1 Kinetic . | . . Secondary . | . . Self-Inflicted Damage . | . . Shots . | . . Rammed . | . . Targets Rammed . | . . Kicked . | . . Crushed . | . . Highest Temperature 7 | . 7 Average Temperature 7 | . 7 Received Heat Transfer 240 | . 240 Siege Activations . | . . Robots Corrupted . | . . Combat Hostiles . | . . Parts Fried 8 | . 8 Impact Corruptions 4 | . 4 Robots Melted . | . . Combat Hostiles . | . . Parts Melted . | . . Heat Transferred 125 | . 125 Parts Sabotaged . | . . Parts Stolen . | . . Parts Stripped . | . . Power Chain Reactions . | . . Alert | -11 -10 ------- Run | Yrd Mat Peak Influence 258 | . 258 Initial . | . . Average 98 | . 108 Maximum Alert Level 1 | . 1 Low Security (%) 80 | 100 78 Level 1 19 | . 21 Level 2 . | . . Level 3 . | . . Level 4 . | . . Level 5 . | . . High Security . | . . Max Security . | . . Squads Dispatched 3 | . 3 Investigation 3 | . 3 Extermination . | . . Reinforcement . | . . Assault . | . . Garrison . | . . Intercept . | . . Searches Triggered . | . . Construction Impeded . | . . Haulers Reinforced . | . . Active Scanning Responses . | . . Cargo Convoy Interrupts . | . . Stealth | -11 -10 --------- Run | Yrd Mat Distress Signals 4 | . 4 Communications Jammed . | . . Distress Signals . | . . Times Spotted 23 | . 23 Peak Tracking Total 7 | . 7 Tactical Retreats . | . . Traps | -11 -10 ------- Run | Yrd Mat Traps Triggered . | . . Indirectly . | . . Trap Hack Attempts . | . . Triggered . | . . Disarmed . | . . Reprogrammed . | . . Reused . | . . Traps Extracted . | . . Installed . | . . Triggered . | . . Machines | -11 -10 ---------- Run | Yrd Mat Machines Disabled . | . . Max in Single Turn . | . . Machines Repaired . | . . Machines Dismantled . | . . Machines Sabotaged . | . . Overloaded Fab Kills . | . . Hacking | -11 -10 --------- Run | Yrd Mat Machines Accessed 6 | . 6 Terminals 4 | . 4 Fabricators . | . . Repair Stations . | . . Recycling Units 2 | . 2 Scanalyzers . | . . Garrison Access . | . . Total Hacks 17 | . 17 Successful 9 | . 9 Failed 8 | . 8 Catastrophic 5 | . 5 Database Lockouts . | . . Manual 5 | . 5 Terminals 12 | . 12 Fabricators . | . . Repair Stations . | . . Recycling Units 5 | . 5 Scanalyzers . | . . Garrison Access . | . . Terminal Hacks 5 | . 5 Branch Access Points 1 | . 1 Alert Level 1 | . 1 Dispatch Records 1 | . 1 Hauler Manifests 1 | . 1 Zone Layout 1 | . 1 Fabricator Hacks . | . . Repair Station Hacks . | . . Recycling Unit Hacks 4 | . 4 Process 1 | . 1 Report Inventory 2 | . 2 Retrieve Components 1 | . 1 Scanalyzer . | . . Garrison Access Hacks . | . . Unauthorized Hacks . | . . Terminals . | . . Fabricators . | . . Repair Stations . | . . Recycling Units . | . . Scanalyzers . | . . Garrison Access . | . . Data Cores Recovered . | . . Used . | . . Hacking Detections 6 | . 6 Full Trace Events 3 | . 3 Feedback Events . | . . Feedback Blocked . | . . Robot Schematics Acquired . | . . Robots Built . | . . Authchips . | . . Time . | . . Total Robot Build Rating . | . . Part Schematics Acquired . | . . Parts Built . | . . Authchips . | . . Time . | . . Total Part Build Rating . | . . Parts Repaired . | . . Time . | . . Parts Recycled . | . . Recycled Matter 97 | . 97 Retrieved Matter . | . . Retrieved Components 2 | . 2 Parts Scanalyzed . | . . Part Schematics Acquired . | . . Parts Damaged . | . . Bothacking | -11 -10 ------------ Run | Yrd Mat Used RIF Installer . | . . Robots Hacked . | . . Non-combat . | . . Combat . | . . Robot Hacks Applied . | . . Relay Couplers Released . | . . Fabnet Peak Effective % . | . . Robots Rewired . | . . Allies Hacked . | . . Hacks Repelled . | . . Allies | -11 -10 -------- Run | Yrd Mat Total Allies . | . . Largest Group . | . . Highest-Rated Group . | . . Highest-Rated Ally . | . . Total Orders . | . . Ally Attacks . | . . Total Damage . | . . Kills . | . . Allies Corrupted . | . . Allies Melted . | . . Intel | -11 -10 ------- Run | Yrd Mat Robot Analysis Total . | . . Derelict Logs Recovered . | . . Drone Launches . | . . Drone Recoveries . | . . Exploration | -11 -10 ------------- Run | Yrd Mat Turns Passed 534 | 50 484 Spaces Moved 343 | 38 305 Core 3 | 1 2 Treads . | . . Legs . | . . Wheels 340 | 37 303 Hover . | . . Flight . | . . Fastest Speed 50 | 50 100 Average Speed 100 | 98 100 Slowest Speed 200 | 100 200 Overloaded Moves . | . . Propulsion Burnouts . | . . Robots Hopped . | . . Cave-ins Triggered . | . . Exploration Rate (%) 33 | 3 64 Regions Visited 1 Branch Regions . Pre-discovered Areas . | . . Known Exits Taken . | . . Unknown Exits Taken 1 | 1 . Scrap Searched . | . . Spaces Dug . | . . Terrain Destroyed . | . . Melee . | . . Projectile . | . . AOE . | . . Terrain Rammed . | . . Walls Destroyed . | . . Machines Disabled . | . . Actions | -11 -10 --------- Run | Yrd Mat Total 449 | 48 401 Wait 15 | . 15 Move 342 | 37 305 Hop . | . . Pick Up 12 | 5 7 Fast Attach 7 | 5 2 Attach 5 | 1 4 Detach . | . . Swap 3 | . 3 Drop 1 | . 1 Fire 42 | . 42 Melee 22 | . 22 Ram . | . . Kick . | . . Crush . | . . Escape Stasis . | . . Rewire . | . . Trap . | . . Miscellaneous . | . . Route ------- -11/Scrapyard -10/Materials (discovered 2 exits: [*Mat] / Min) History --------- Turn | Location | Event 15 | -11/Scrapyard | Discovered new exit (range 14) 51 | -11/Scrapyard | Entered Materials 234 | -10/Materials | Destroyed 7 combat bots 237 | -10/Materials | Lost 3 parts (1p1n1w) 266 | -10/Materials | Identified exit to Mines 309 | -10/Materials | Build established: Mutant 311 | -10/Materials | Discovered new exit (range 6) 442 | -10/Materials | Core integrity fell below 50% 528 | -10/Materials | Core integrity fell below 20% 535 | -10/Materials | Destroyed by S-10 Pest with Light Assault Rifle Last Messages --------------- 00425_ W-16 Scout sends out distress signal. 00434_ S-10 Pest destroyed. 00437_ K-01 Serf collects debris. 00443_ Flail destroyed. 00444_ K-01 Serf collects debris. 00449_ S-10 Pest destroyed. 00449_ Switching to secondary target: S-10 Pest. 00449_ K-01 Serf collects debris. 00452_ S-10 Pest destroyed. 00453_ K-01 Serf cleans the Terminal. 00454_ Acquired 12 matter. 00456_ Acquired 10 matter. 00457_ K-01 Serf collects debris. 00461_ Acquired Flight Unit. 00462_ Acquired 20 matter. 00464_ K-01 Serf cleans the Terminal. 00511_ Imp. Targeting Computer destroyed. 00516_ Ion Engine destroyed. 00520_ Com. Wheel destroyed. 00524_ Assault Rifle destroyed. Map ----- +----------------------------------------------------+ | ????????? "??? #????????????? | | ??????? """ ?????????????? | | ??????? """ ?????????????? | | ??????# !!! #????????????? | | ??????? !! #????????????? | | ????????? !! #????????????? | | ?????????? #????????????? | | ??????????? ############## | | ????????????? | | ?????????????? | | ??????????????? """ """ """ """ | | ????????????????# """ """ """ """ | | ??????###+#####??# """ """ """ """ | | ??????#! * ! # """ """ """ """ | | ??????# / """ """ """ """ | | ??????? """ """ # | | ???????????" ""??# | | ???????????" ????# ! | | ?????????????????# ##################/# | | ???????########### #?????????????# | | ???????# # #?????????????# | | ???????# # #?????????????# | | ???????# # #?????????????# "T" | | ???????? """ ss/ #?????????????# """ | | ???????? """"" s # +?????????????# = | | ???????# """"" @# #?????????????###### | | ???????# """"" # #??????????????????# | | ???????# """ # ?????????????????# | | ???????#######g### ????????????????# | | ???????????? ?+ #?????####??????# | | ??????????? ?# #?????# ###????# | | ??????????# " " ? #?????# #???## | | ??????????# "T" !? #?????### ###### | | ??????????# """ # #???????# | | ??????????# # ^ #???????# ###### | | ??????????######## #???????# #????## | | ?????????????????? ?######### #?????# | | ?????????????????? ????# # #?????# | | ?????????????????????????# # #?????# | | ?????????????????????????# # #?????? | | ?????????????????????????# # #?????? | | ?????????????????????????# # ####### | | ?????????????????????????# # | | ?????????????????????????# + | | ?????????????????????????# # | | ?????????????????????????# ###### < | | ?????????????????????????# #????# | | ?????????????????????????# #????#### | | ?????????????????????????# #???????# | | ?????????????????????????# #???????# | +----------------------------------------------------+ Best States ------------- Heat Dissipation 25 Energy Generation 10 Energy Capacity 250 Matter Stores 300 Matter Capacity 300 Sight Range 16 Terrain Scan Density 10 Evasion (%) 40 Targeting Accuracy 6 Item Schematics ----------------- None Robot Schematics ------------------ None Fabricated ------------ Nothing Alien Tech Used ----------------- None Achievements -------------- None Challenges ------------ None Game ------ Seed AerolevCatalystMonowheel Manual? 0 Play Time 00:09:01 Cumulative 7.6 hours Start 2024.07.04 @ 10:08:37 End 2024.07.04 @ 10:17:48 Sessions 1 Manual Loads 0 Difficulty Rogue Special Mode None Game No. 13 Rogue 13 Adventurer 0 Explorer 0 Win Type - Total 0 Types 0/0/0/0/0/0/0/0/0 Lore% 10 Gallery% 13 Achievement% 16 Wizard Run 0 Options --------- Layout 1 ASCII 1 Keyboard 0 Movement Numpad Keybinds 0 Fullscreen 1 Font 24/Proggy Map View 50x35 Zoom Use 0% Tactical HUD 1 Map Filters NONE Filters NONE Steam 0 RUN: 02c070a1-8665-4ed7-b8e7-4fc557720ce0